bitfinex/quotes_SOLUSD_20250417
["timestamp","ask_amount","ask_price","bid_price","bid_amount"]
[1744895700009,162.58158545,133.29,133.28,0.063]
[1744895700309,79.84458545,133.29,133.28,0.063]
[1744895701009,72.34214716,133.29,133.28,0.063]
[1744895701609,38.10817516,133.29,133.28,1.063]
[1744895701817,53.40817516,133.29,133.28,1.063]
[1744895702307,38.10817516,133.29,133.28,1.063]
[1744895702709,53.40817516,133.29,133.28,0.063]
[1744895703287,79.84458545,133.29,133.28,0.063]
[1744895705293,86.6607951,133.29,133.28,0.063]
[1744895705923,26.0,133.29,133.28,0.063]
[1744895706216,41.3,133.29,133.28,1.063]
[1744895707209,60.22438481,133.29,133.28,1.063]
[1744895707412,79.15835681,133.29,133.28,0.063]
[1744895707601,86.6607951,133.29,133.28,0.063]
[1744895707910,79.15835681,133.29,133.28,1.063]
[1744895708407,79.15835681,133.29,133.28,0.063]
[1744895708588,79.15835681,133.29,133.28,1.063]
[1744895709413,60.22438481,133.29,133.28,1.063]
[1744895709815,15.3,133.29,133.28,1.063]
[1744895710115,15.3,133.29,133.28,8.5660012]
[1744895713025,101.72438481,133.3,133.28,8.5660012]
[1744895713194,117.02438481,133.3,133.29,1.0]
[1744895714328,98.1,133.3,133.29,1.0]
[1744895714515,117.02438481,133.3,133.29,1.0]
[1744895714908,34.22438481,133.3,133.29,1.0]
[1744895716918,15.3,133.3,133.29,1.0]
[1744895717306,34.22438481,133.31,133.29,1.0]
[1744895717494,15.3,133.31,133.3,1.0]
[1744895717694,15.3,133.31,133.29,1.0]
[1744895717695,34.22438481,133.31,133.29,1.0]
[1744895717896,34.22438481,133.31,133.3,1.0]
[1744895719023,15.3,133.31,133.3,1.0]
[1744895719220,101.72438481,133.32,133.31,1.0]
[1744895719403,82.8,133.32,133.31,8.50131272]
[1744895719604,82.8,133.32,133.31,1.0]
[1744895720212,101.72438481,133.32,133.3,1.0]
[1744895720521,18.92438481,133.31,133.3,1.0]
[1744895721025,101.72438481,133.32,133.31,1.0]
[1744895721215,82.8,133.32,133.31,1.0]
[1744895723615,82.8,133.32,133.31,8.50131272]
[1744895723805,82.8,133.32,133.31,27.42569753]
[1744895725928,18.92438481,133.36,133.31,27.42569753]
[1744895725929,82.8,133.36,133.35,1.0]
[1744895727330,101.72438481,133.36,133.35,1.0]
[1744895727830,101.72438481,133.36,133.34,1.0]
[1744895727831,109.2228851,133.36,133.34,1.0]
[1744895728125,18.92438481,133.35,133.34,1.0]
[1744895728528,101.72438481,133.36,133.35,1.0]
[1744895729033,98.02,133.36,133.35,1.0]
[1744895729407,82.8,133.36,133.35,1.0]
[1744895729629,101.72438481,133.36,133.35,1.0]
[1744895730015,101.72438481,133.36,133.34,1.0]
[1744895730307,18.92438481,133.35,133.34,1.0]
[1744895730957,18.92438481,133.35,133.33,1.0]
[1744895731158,18.92438481,133.34,133.33,1.0]
[1744895733434,26.42400982,133.34,133.33,1.0]
[1744895733739,26.42400982,133.34,133.29,7.50239124]
[1744895733740,82.8,133.33,133.32,1.0]
[1744895733948,34.14438481,133.33,133.32,1.0]
[1744895737459,41.64457231,133.33,133.31,1.0]
[1744895737670,120.37403367,133.32,133.29,1.0]
[1744895737973,26.42645911,133.3,133.28,0.063]
[1744895738136,101.72438481,133.29,133.28,0.063]
[1744895738557,37.85835681,133.29,133.28,0.063]
[1744895739649,45.3607951,133.29,133.28,0.063]
[1744895739855,64.28517991,133.29,133.28,0.063]
[1744895740166,45.3607951,133.29,133.28,0.063]
[1744895742568,45.07647196,133.29,133.28,0.063]
[1744895743164,18.92438481,133.29,133.28,1.063]
[1744895744746,34.14438481,133.29,133.28,1.063]
[1744895744947,18.92438481,133.29,133.28,1.063]
[1744895745173,34.14438481,133.29,133.28,1.063]
[1744895745348,18.92438481,133.29,133.28,1.063]
[1744895745747,41.6468231,133.29,133.28,1.063]
[1744895745956,60.29647196,133.29,133.28,0.063]
[1744895747444,60.5807951,133.29,133.28,0.063]
[1744895751766,15.22,133.29,133.28,0.063]
[1744895751979,34.14438481,133.29,133.28,0.063]
[1744895752262,233.96,133.34,133.29,1.0]
[1744895752573,34.04438481,133.33,133.32,1.0]
[1744895754675,41.54457231,133.33,133.31,1.0]
[1744895754975,18.92438481,133.32,133.31,1.0]
[1744895755178,18.92438481,133.32,133.3,1.0]
[1744895755377,18.92438481,133.31,133.3,1.0]
[1744895756682,18.92438481,133.31,133.28,0.063]
[1744895756683,18.92438481,133.31,133.29,1.0]
[1744895756854,18.92438481,133.3,133.29,1.0]
[1744895758562,7.50243829,133.29,133.28,0.063]
[1744895758773,26.4268231,133.29,133.28,1.063]
[1744895758972,26.4268231,133.29,133.28,0.063]
[1744895759355,64.00085677,133.29,133.28,0.063]
[1744895759554,45.3607951,133.29,133.28,0.063]
[1744895760788,45.07647196,133.29,133.28,0.063]
[1744895761685,18.92438481,133.29,133.28,0.063]
[1744895761983,26.4268231,133.29,133.28,0.063]
[1744895762378,18.92438481,133.29,133.28,0.063]
[1744895762675,18.92438481,133.29,133.28,1.063]
[1744895762676,26.0,133.29,133.28,1.063]
[1744895762869,18.92438481,133.29,133.28,1.063]
[1744895764282,18.92438481,133.29,133.28,0.063]
[1744895765588,45.3607951,133.29,133.28,0.063]
[1744895766785,26.43641029,133.29,133.28,0.063]
[1744895766964,45.3607951,133.29,133.28,0.063]
[1744895767585,18.92438481,133.29,133.28,0.063]
[1744895767879,26.4268231,133.29,133.28,0.063]
[1744895772879,71.3607951,133.29,133.28,0.063]
[1744895773587,71.07647196,133.29,133.28,0.063]
[1744895773782,71.3607951,133.29,133.28,0.063]
[1744895777492,52.4268231,133.29,133.28,0.063]
[1744895778183,71.3607951,133.29,133.28,0.063]
[1744895783195,64.54639392,133.29,133.28,0.063]
[1744895789403,18.933972,133.28,133.25,0.063]
[1744895789698,57.04395563,133.26,133.25,0.063]
[1744895790804,57.04395563,133.26,133.25,1.063]
[1744895791506,64.54808289,133.26,133.25,0.063]
[1744895792497,83.30840106,133.26,133.23,1.063]
[1744895792677,31.04395563,133.24,133.23,1.063]
[1744895792877,12.10998363,133.24,133.23,1.063]
[1744895793393,27.18998363,133.24,133.23,1.063]
[1744895794706,34.6952373,133.24,133.23,1.063]
[1744895803406,34.6952373,133.24,133.23,0.063]
[1744895803708,34.6952373,133.24,133.23,1.063]
[1744895804001,34.6952373,133.24,133.23,0.063]
[1744895804212,34.6952373,133.24,133.23,1.063]
[1744895804502,53.6292093,133.24,133.23,1.063]
[1744895807180,85.71086959,133.24,133.23,0.063]
[1744895808285,85.71086959,133.24,133.23,1e-08]
[1744895810211,79.6292093,133.24,133.23,1e-08]
[1744895810812,19.6152373,133.24,133.23,1.00000001]
[1744895811015,34.6952373,133.24,133.23,1.00000001]
[1744895812016,27.18998363,133.24,133.23,1.00000001]
[1744895812690,34.6952373,133.24,133.23,1.00000001]
[1744895813514,27.18998363,133.24,133.23,1.00000001]
[1744895814110,34.6952373,133.24,133.23,1.00000001]
[1744895816706,34.6952373,133.24,133.23,1e-08]
[1744895816895,34.6952373,133.24,133.23,1.00000001]
[1744895818821,34.6952373,133.24,133.23,1e-08]
[1744895819820,34.6952373,133.24,133.23,1.00000001]
[1744895820214,34.6952373,133.24,133.23,1e-08]
[1744895820522,53.6292093,133.24,133.23,1e-08]
[1744895821325,53.34488616,133.24,133.23,1e-08]
[1744895821498,53.6292093,133.24,133.23,1e-08]
[1744895826125,18.933972,133.23,133.22,0.04300001]
[1744895826329,31.04395563,133.23,133.22,0.04300001]
[1744895827625,18.64964886,133.21,133.19,1.0]
[1744895827805,94.86698362,133.2,133.18,1.0]
[1744895828123,45.81963249,133.19,133.17,1.063]
[1744895828308,12.10998363,133.18,133.17,1.063]
[1744895829527,18.64964886,133.17,133.16,0.063]
[1744895829700,18.64964886,133.17,133.14,1.063]
[1744895829701,31.04395563,133.17,133.14,0.063]
[1744895829908,12.10998363,133.15,133.14,0.063]
[1744895830712,30.75963249,133.15,133.14,0.063]
[1744895830914,31.04395563,133.15,133.14,0.063]
[1744895831112,26.0,133.16,133.14,1.063]
[1744895831426,15.06,133.17,133.16,1.0]
[1744895831630,246.28998363,133.2,133.19,1.0]
[1744895831833,249.24,133.2,133.19,1.0]
[1744895832129,261.34998363,133.2,133.18,1.0]
[1744895832325,18.64964886,133.18,133.17,1.0]
[1744895832503,18.64964886,133.18,133.16,1.0]
[1744895832504,30.75963249,133.18,133.16,1.0]
[1744895832705,12.10998363,133.19,133.18,1.0]
[1744895832922,261.34998363,133.2,133.19,1.0]
[1744895833231,261.34998363,133.2,133.18,1.0]
[1744895833414,261.34998363,133.2,133.19,1.0]
[1744895834405,268.85749113,133.2,133.19,1.0]
[1744895834621,268.85749113,133.2,133.17,1.0]
[1744895834815,12.10998363,133.18,133.16,1.0]
[1744895835113,12.10998363,133.18,133.17,1.0]
[1744895835541,12.10998363,133.19,133.17,1.0]
[1744895835834,12.10998363,133.19,133.18,1.0]
[1744895836006,249.24,133.2,133.19,1.0]
[1744895836203,27.16998363,133.2,133.19,1.0]
[1744895836408,34.67749113,133.2,133.18,1.0]
[1744895836616,12.10998363,133.19,133.18,1.0]
[1744895837733,19.6180548,133.19,133.18,1.0]
[1744895837941,38.26770366,133.19,133.16,1.0]
[1744895838246,12.10998363,133.17,133.16,1.0]
[1744895838716,12.10998363,133.17,133.15,1.0]
[1744895839039,12.10998363,133.16,133.15,1.0]
[1744895839742,12.10998363,133.17,133.16,1.0]
[1744895840747,12.10998363,133.18,133.17,1.0]
[1744895841951,12.10998363,133.19,133.17,0.41431]
[1744895842118,82.8,133.18,133.17,0.41431]
[1744895844238,97.86,133.2,133.17,20.03349239]
[1744895844450,97.86,133.2,133.19,0.41431]
[1744895845238,82.8,133.2,133.19,0.41431]
[1744895845440,15.18,133.23,133.22,0.41431]
[1744895846939,15.18,133.23,133.22,7.92069042]
[1744895847141,15.18,133.23,133.22,20.03067405]
[1744895847839,82.8,133.24,133.23,0.41431]
[1744895848043,82.8,133.24,133.23,20.03011063]
[1744895849034,82.8,133.24,133.23,7.920127]
[1744895849240,82.8,133.24,133.23,0.41431]
[1744895849645,94.90998363,133.24,133.23,0.41431]
[1744895849822,82.8,133.23,133.22,0.41431]
[1744895850028,102.41580063,133.23,133.22,0.41431]
[1744895850945,38.26544949,133.23,133.22,0.41431]
[1744895851241,38.26544949,133.23,133.18,0.41431]
[1744895851242,18.64964886,133.2,133.18,0.41431]
[1744895851444,26.0,133.18,133.17,0.41431]
[1744895851638,38.10998363,133.18,133.17,0.41431]
[1744895852247,45.61861856,133.18,133.17,0.41431]
[1744895852550,45.61861856,133.18,133.16,0.41431]
[1744895852739,94.90998363,133.17,133.16,0.41431]
[1744895853043,12.10998363,133.17,133.16,0.41431]
[1744895853226,18.9543952,133.17,133.16,0.41431]
[1744895854322,26.46359396,133.17,133.16,0.41431]
[1744895854518,18.9543952,133.17,133.16,0.41431]
[1744895855848,26.46359396,133.17,133.16,0.41431]
[1744895857943,26.46359396,133.17,133.15,0.41431]
[1744895858132,18.9543952,133.16,133.15,0.41431]
[1744895858334,26.46415789,133.16,133.15,0.41431]
[1744895858741,18.9543952,133.16,133.15,0.41431]
[1744895859730,26.46415789,133.16,133.15,0.41431]
[1744895860446,45.11380675,133.16,133.14,0.47731]
[1744895860632,34.1343952,133.15,133.14,0.47731]
[1744895862548,41.64472189,133.15,133.14,0.47731]
[1744895865154,60.29437075,133.15,133.14,0.47731]
[1744895865563,60.57869389,133.15,133.14,0.47731]
[1744895865731,86.57869389,133.15,133.14,0.47731]
[1744895866857,86.57869389,133.15,133.14,0.063]
[1744895867037,86.57869389,133.15,133.14,0.47731]
[1744895867359,44.933972,133.11,133.1,0.47731]
[1744895867551,63.8883672,133.11,133.1,0.47731]
[1744895868357,44.9543952,133.11,133.1,0.47731]
[1744895868653,18.9543952,133.11,133.1,0.47731]
[1744895868860,34.1543952,133.12,133.11,0.41431]
[1744895869158,18.9543952,133.14,133.13,0.41431]
[1744895869344,34.1543952,133.14,133.13,0.41431]
[1744895870153,18.64964886,133.13,133.11,0.41431]
[1744895870456,18.64964886,133.13,133.12,0.41431]
[1744895870655,15.2,133.14,133.13,0.41431]
[1744895870854,15.2,133.16,133.15,0.41431]
[1744895872258,18.9543952,133.18,133.17,0.41431]
[1744895872452,15.2,133.18,133.17,0.41431]
[1744895872657,268.4143952,133.21,133.2,0.41431]
[1744895872865,275.92133912,133.21,133.2,0.41431]
[1744895873949,18.64964886,133.2,133.19,0.41431]
[1744895874263,37.60404406,133.2,133.19,0.41431]
[1744895874447,37.60404406,133.2,133.18,0.41431]
[1744895874649,18.9543952,133.19,133.18,0.41431]
[1744895875563,45.11211523,133.19,133.18,0.41431]
[1744895877379,18.933972,133.18,133.15,0.41431]
[1744895877564,18.64964886,133.17,133.16,0.41431]
[1744895877878,120.40404406,133.17,133.15,0.41431]
[1744895878053,34.2343952,133.16,133.15,0.41431]
[1744895878459,52.88404406,133.16,133.15,0.41431]
[1744895879274,60.39380675,133.16,133.15,0.41431]
[1744895879479,60.39380675,133.16,133.14,0.41431]
[1744895879683,146.40404406,133.15,133.13,0.41431]
[1744895879849,101.7543952,133.14,133.13,0.41431]
[1744895880045,120.40404406,133.14,133.13,0.41431]
[1744895880387,101.7543952,133.14,133.13,0.41431]
[1744895881280,109.26528599,133.14,133.13,0.41431]
[1744895882603,101.44964886,133.13,133.11,0.41431]
[1744895882890,82.8,133.13,133.11,0.41431]
[1744895883095,82.8,133.13,133.12,0.41431]
[1744895883887,15.28,133.16,133.15,0.41431]
[1744895884980,41.74415789,133.16,133.15,0.41431]
[1744895885291,41.74415789,133.16,133.14,0.41431]
[1744895885584,22.78976269,133.16,133.15,0.41431]
[1744895886166,15.28,133.16,133.15,0.41431]
[1744895887085,60.39380675,133.16,133.15,0.41431]
[1744895887291,60.39380675,133.16,133.14,0.41431]
[1744895887491,37.60404406,133.15,133.14,0.41431]
[1744895889589,18.64964886,133.14,133.13,0.41431]
[1744895889779,37.60404406,133.14,133.13,0.41431]
[1744895889981,18.9543952,133.14,133.13,0.41431]
[1744895891095,26.46528599,133.14,133.13,0.41431]
[1744895891897,18.9543952,133.14,133.13,0.41431]
[1744895892478,26.46528599,133.14,133.13,0.41431]
[1744895892684,45.11465016,133.15,133.13,0.41431]
[1744895892872,45.11465016,133.15,133.14,0.41431]
[1744895893989,41.44025496,133.15,133.14,0.41431]
[1744895894298,60.39465016,133.15,133.14,0.41431]
[1744895895695,41.7450013,133.15,133.14,0.41431]
[1744895896078,18.9543952,133.17,133.14,0.41431]
[1744895896278,33.92964886,133.16,133.15,0.41431]
[1744895896480,52.88404406,133.16,133.15,0.41431]
[1744895896675,34.2343952,133.16,133.15,0.41431]
[1744895897580,26.0,133.14,133.13,0.41431]
[1744895897817,44.9543952,133.14,133.13,0.41431]
[1744895898305,71.11493485,133.14,133.13,0.41431]
[1744895898680,71.11493485,133.14,133.12,0.41431]
[1744895898880,37.60404406,133.13,133.12,0.41431]
[1744895899411,37.8883672,133.13,133.12,0.41431]
[1744895899918,45.39982216,133.13,133.12,0.41431]
[1744895900205,45.39982216,133.13,133.11,0.41431]
[1744895900384,37.60404406,133.12,133.11,0.41431]
[1744895900703,82.8,133.11,133.1,0.47731]
[1744895900918,117.0343952,133.11,133.1,0.47731]
[1744895901081,98.08,133.11,133.1,0.47731]
[1744895902018,98.08,133.11,133.1,7.990458]
[1744895902181,98.08,133.11,133.1,26.9448532]
[1744895902381,98.08,133.11,133.1,0.47731]
[1744895906487,44.933972,133.1,133.09,0.063]
[1744895906789,44.933972,133.1,133.07,0.063]
[1744895906790,44.933972,133.08,133.07,0.063]
[1744895906992,63.8883672,133.08,133.07,0.063]
[1744895908107,82.8427624,133.08,133.07,0.063]
[1744895908305,90.35703952,133.08,133.07,0.063]
[1744895909216,71.40264432,133.08,133.07,0.063]
[1744895909401,90.35703952,133.08,133.07,0.063]
[1744895910210,0.28432314,133.07,133.06,0.063]
[1744895910412,45.70795535,133.07,133.06,0.063]
[1744895911894,45.40320901,133.07,133.06,0.063]
[1744895913021,64.35760421,133.07,133.06,0.063]
[1744895913221,45.40320901,133.07,133.06,0.063]
[1744895913522,64.35760421,133.07,133.06,0.063]
[1744895913688,64.35760421,133.07,133.05,2.6059336]
[1744895913689,18.64964886,133.06,133.05,2.6059336]
[1744895913889,52.90404406,133.06,133.05,2.6059336]
[1744895914111,52.90404406,133.06,133.05,1e-08]
[1744895914112,78.90404406,133.06,133.05,1e-08]
[1744895914322,60.41945064,133.06,133.04,1e-08]
[1744895914541,18.64964886,133.02,133.0,0.2]
[1744895914812,120.40404406,133.01,133.0,0.2]
[1744895914995,116.74964886,133.01,133.0,0.2]
[1744895915193,52.90404406,133.01,133.0,0.2]
[1744895916109,15.3,133.01,133.0,0.2]
[1744895916496,44.9543952,133.03,133.0,0.2]
[1744895916817,18.9543952,133.02,133.0,0.2]
[1744895917391,18.9543952,133.01,133.0,0.2]
[1744895918299,18.9543952,133.02,133.0,0.2]
[1744895919626,26.0,133.03,133.0,0.2]
[1744895919810,18.9543952,133.02,133.0,0.2]
[1744895920729,44.9543952,133.03,133.0,0.2]
[1744895920923,18.9543952,133.04,133.0,7.71863153]
[1744895922409,18.9543952,133.02,133.0,0.2]
[1744895922935,18.9543952,133.03,133.0,7.71866624]
[1744895923110,18.9543952,133.04,133.0,7.71866624]
[1744895924042,18.9543952,133.04,133.0,26.67306144]
[1744895924634,18.9543952,133.04,133.0,7.71866624]
[1744895925740,26.47094304,133.04,133.0,7.71866624]
[1744895926042,82.8,133.02,133.0,7.71866624]
[1744895926415,82.8,133.02,133.0,7.71877919]
[1744895928334,82.8,133.02,133.0,0.2]
[1744895928522,82.8,133.02,133.0,7.71866468]
[1744895929232,82.8,133.02,133.01,18.9543952]
[1744895930036,82.8,133.04,133.01,18.9543952]
[1744895931134,82.8,133.04,133.01,26.47222703]
[1744895931513,82.8,133.04,133.01,7.51783183]
[1744895931929,109.27109625,133.04,133.0,0.2]
[1744895932638,109.27109625,133.04,133.0,7.7187688]
[1744895932838,90.31670105,133.04,133.0,7.7187688]
[1744895933024,18.9543952,133.03,133.0,0.2]
[1744895934225,18.9543952,133.03,133.0,7.71861239]
[1744895934412,82.8,133.04,133.0,26.67300759]
[1744895934611,82.8,133.04,133.01,18.9543952]
[1744895934815,82.8,133.04,133.03,18.9543952]
[1744895935119,117.0543952,133.08,133.04,7.51653638]
[1744895935319,82.8,133.07,133.04,7.51653638]
[1744895935526,82.8,133.07,133.04,26.47093158]
[1744895935731,82.8,133.07,133.06,18.9543952]
[1744895935932,82.8,133.07,133.05,18.9543952]
[1744895936127,82.8,133.07,133.06,18.9543952]
[1744895937145,82.8,133.07,133.05,26.46994159]
[1744895937442,82.8,133.11,133.06,18.9543952]
[1744895937628,82.8,133.1,133.08,18.9543952]
[1744895938137,15.36,133.12,133.09,18.9543952]
[1744895938336,15.36,133.12,133.1,18.9543952]
[1744895938539,0.03,133.13,133.09,18.9543952]
[1744895939221,0.03,133.13,133.1,7.513148]
[1744895939428,0.03,133.13,133.09,26.46788857]
[1744895940453,0.03,133.13,133.1,18.9543952]
[1744895940653,0.03,133.13,133.09,26.46788857]
[1744895941337,0.03,133.13,133.1,18.9543952]
[1744895942361,0.03,133.13,133.11,26.46697877]
[1744895942559,0.03,133.13,133.12,18.9543952]
[1744895945451,0.03,133.13,133.12,26.46641443]
[1744895948656,0.03,133.13,133.11,26.46673404]
[1744895948831,0.03,133.13,133.11,18.9543952]
[1744895949169,82.8,133.12,133.09,7.51345608]
[1744895949334,101.7543952,133.12,133.06,7.51540658]
[1744895949535,18.9543952,133.1,133.06,7.51540658]
[1744895950244,18.9543952,133.1,133.06,26.46980178]
[1744895950445,101.7543952,133.11,133.07,18.9543952]
[1744895950646,82.8,133.11,133.09,18.9543952]
[1744895951034,82.8,133.11,133.1,18.9543952]
[1744895951342,0.03,133.13,133.1,18.9543952]
[1744895951541,0.03,133.13,133.1,26.46705205]
[1744895952548,18.9543952,133.12,133.08,7.51427712]
[1744895952738,18.9843952,133.13,133.09,18.9543952]
[1744895952930,0.03,133.13,133.11,18.9543952]
[1744895953633,0.03,133.13,133.11,26.46643091]
[1744895954135,0.03,133.13,133.12,18.9543952]
[1744895955737,0.03,133.13,133.12,26.46641443]
[1744895955933,15.39,133.19,133.12,45.53078564]
[1744895956138,0.03,133.19,133.17,18.9543952]
[1744895957139,0.03,133.19,133.17,26.46327073]
[1744895957637,0.03,133.19,133.18,18.9543952]
[1744895958956,0.03,133.19,133.16,26.46387488]
[1744895959962,18.9843952,133.19,133.15,7.51031862]
[1744895960469,0.03,133.19,133.15,7.51031862]
[1744895960648,0.03,133.19,133.15,26.46471382]
[1744895960853,0.03,133.19,133.16,18.9543952]
[1744895961371,82.83,133.19,133.18,26.46303013]
[1744895963335,82.83,133.19,133.16,26.46411368]
[1744895963654,82.83,133.19,133.15,26.46444728]
[1744895964849,82.83,133.19,133.16,18.9543952]
[1744895965347,82.83,133.19,133.15,7.51005208]
[1744895965570,82.83,133.19,133.16,26.46412822]
[1744895966153,82.83,133.19,133.16,7.50973302]
[1744895966366,82.83,133.19,133.18,18.9543952]
[1744895967149,0.03,133.19,133.18,18.9543952]
[1744895967562,0.03,133.19,133.17,18.9543952]
[1744895968449,0.03,133.19,133.16,18.9543952]
[1744895969762,0.03,133.19,133.16,26.46376192]
[1744895969948,0.03,133.19,133.18,18.9543952]
[1744895971753,0.03,133.19,133.18,26.46303013]
[1744895975381,0.03,133.19,133.17,26.46336743]
[1744895976075,0.03,133.19,133.18,18.9543952]
[1744895977464,0.03,133.19,133.18,26.46303013]
[1744895980079,0.03,133.19,133.18,52.74735327]
[1744895982979,0.03,133.21,133.2,26.0]
[1744895983272,0.03,133.21,133.2,44.9543952]
[1744895984151,0.03,133.21,133.2,18.9543952]
[1744895984767,0.03,133.21,133.2,26.4619027]
[1744895987880,0.03,133.21,133.2,26.74622584]
[1744895991863,0.03,133.21,133.2,26.4619027]
[1744895993253,0.03,133.21,133.2,18.9543952]
[1744895993459,0.03,133.21,133.19,26.46216579]
[1744895993659,0.03,133.21,133.19,7.50777059]
[1744895993874,0.03,133.21,133.19,26.46216579]
[1744895994575,0.03,133.21,133.19,18.9543952]
[1744895995484,0.03,133.21,133.2,26.4619027]
[1744895996182,0.03,133.21,133.2,7.5075075]
[1744895996389,0.03,133.21,133.2,26.4619027]
[1744896005179,0.03,133.21,133.2,19.61981176]
[1744896005377,0.03,133.21,133.16,44.77400893]
[1744896005687,0.03,133.21,133.18,12.11230426]
[1744896006687,0.03,133.21,133.19,12.11230426]
[1744896006877,0.03,133.21,133.2,12.11230426]
[1744896007187,0.03,133.21,133.2,18.91855884]
[1744896008101,0.03,133.21,133.2,26.42606634]
[1744896020291,0.03,133.21,133.2,7.5075075]
[1744896020498,0.03,133.21,133.2,26.42606634]
[1744896021394,0.03,133.21,133.2,26.71038948]
[1744896023699,0.03,133.25,133.2,91.39771708]
[1744896024002,0.03,133.25,133.24,18.91855884]
[1744896024598,0.03,133.25,133.24,26.42381251]
[1744896027206,0.03,133.25,133.24,19.60865392]
[1744896030492,12.13340025,133.25,133.17,1.0]
[1744896030700,12.10340025,133.24,133.19,12.10340025]
[1744896031001,12.10340025,133.22,133.18,12.10340025]
[1744896031990,12.10340025,133.22,133.19,7.50807117]
[1744896032186,12.10340025,133.22,133.18,19.61177025]
[1744896032392,12.10340025,133.2,133.15,7.51032669]
[1744896032906,12.10340025,133.2,133.15,19.61372694]
[1744896033215,12.10340025,133.2,133.16,12.10340025]
[1744896033688,12.10340025,133.2,133.16,19.61264273]
[1744896037010,102.41046519,133.21,133.16,19.61264273]
[1744896038302,12.10340025,133.19,133.15,19.61350332]
[1744896038511,12.10340025,133.18,133.14,19.61403921]
[1744896039196,12.10340025,133.18,133.14,7.51063896]
[1744896039404,12.10340025,133.18,133.14,19.61403921]
[1744896040113,19.61171239,133.19,133.15,12.10340025]
[1744896041114,19.61171239,133.19,133.15,19.61372195]
[1744896041314,82.8,133.2,133.18,12.10340025]
[1744896041614,82.8,133.2,133.19,12.10340025]
[1744896043214,1.5714,133.23,133.19,19.61093256]
[1744896043514,1.5714,133.23,133.2,12.10340025]
[1744896044790,1.5714,133.23,133.19,19.61093256]
[1744896048017,1.5714,133.23,133.2,12.10340025]
[1744896048607,131.47489042,133.25,133.22,12.10340025]
[1744896048608,0.03,133.25,133.22,12.10340025]
[1744896048818,0.03,133.25,133.24,12.10340025]
[1744896049196,0.03,133.25,133.24,18.90704719]
[1744896049397,0.03,133.25,133.24,19.19137033]
[1744896050215,0.03,133.25,133.24,26.696624]
[1744896050415,0.03,133.27,133.26,26.0]
[1744896050617,0.03,133.27,133.26,44.90704719]
[1744896050802,0.03,133.27,133.26,45.19137033]
[1744896051321,0.03,133.27,133.26,19.19137033]
[1744896051618,0.03,133.29,133.27,18.64964886]
[1744896051918,0.03,133.29,133.28,82.74806638]
[1744896052134,0.03,133.29,133.28,60.33137033]
[1744896052309,0.03,133.29,133.28,67.83437153]
[1744896052910,0.03,133.29,133.28,67.55004839]
[1744896053724,0.03,133.29,133.28,41.55004839]
[1744896054812,0.03,133.29,133.28,26.41004839]
[1744896055219,0.03,133.29,133.28,71.60141872]
[1744896055398,0.03,133.29,133.28,90.25106758]
[1744896056006,0.03,133.29,133.28,64.25106758]
[1744896058226,0.03,133.29,133.28,26.41004839]
[1744896058420,0.03,133.29,133.28,52.41004839]
[1744896060626,0.03,133.29,133.28,90.25106758]
[1744896061933,0.03,133.3,133.29,0.28432314]
[1744896062147,0.03,133.3,133.29,19.19137033]
[1744896062442,0.03,133.3,133.29,26.69380862]
[1744896062617,0.03,133.3,133.29,26.40948548]
[1744896063013,0.03,133.3,133.29,26.69380862]
[1744896063216,0.03,133.3,133.29,45.34345748]
[1744896067617,1e-08,133.3,133.29,60.44345748]
[1744896071153,1e-08,133.3,133.29,53.6254512]
[1744896074552,1e-08,133.3,133.29,79.6254512]
[1744896074730,1e-08,133.3,133.29,80.6254512]
[1744896074927,1e-08,133.3,133.29,48.60243829]